bitfinex-derivatives/quotes_SOLF0:USTF0_20260226
["timestamp","ask_amount","ask_price","bid_price","bid_amount"]
[1772124961874,28.35547345,84.472,84.405,29.36407429]
[1772124962368,28.35547345,84.472,84.406,29.36407429]
[1772124962562,28.35547345,84.499,84.406,29.36407429]
[1772124962768,28.35547345,84.499,84.438,10.6583]
[1772124962970,28.35547345,84.516,84.441,29.36407429]
[1772124963169,28.35547345,84.516,84.446,29.36407429]
[1772124963368,10.6487,84.515,84.448,29.36407429]
[1772124963575,28.35547345,84.516,84.448,29.36407429]
[1772124964869,10.6496,84.507,84.448,29.36407429]
[1772124965366,10.6506,84.5,84.448,29.36407429]
[1772124965873,28.35547345,84.516,84.448,29.36407429]
[1772124966575,28.35547345,84.516,84.45,29.36407429]
[1772124967168,10.6484,84.518,84.45,29.36407429]
[1772124967374,10.6471,84.527,84.462,29.36407429]
[1772124967978,10.6481,84.52,84.464,29.36407429]
[1772124968377,10.6502,84.503,84.464,29.36407429]
[1772124968578,28.35547345,84.513,84.441,29.36407429]
[1772124970374,21.2867,84.558,84.443,28.39033072]
[1772124970576,28.39971856,84.557,84.481,28.39033072]
[1772124970776,28.39971856,84.557,84.509,10.6493]
[1772124970983,28.39971856,84.557,84.501,28.39033072]
[1772124971577,28.39971856,84.577,84.52,8.64058586]
[1772124971787,28.39971856,84.577,84.52,37.03091658]
[1772124972986,10.641,84.576,84.52,37.03091658]
[1772124973288,28.39971856,84.577,84.52,28.39033072]
[1772124973981,8.62745787,84.61,84.52,28.39033072]
[1772124973982,28.39971856,84.594,84.52,28.39033072]
[1772124974187,28.39971856,84.613,84.531,28.39033072]
[1772124974386,28.39971856,84.613,84.533,28.39033072]
[1772124974387,10.6388,84.594,84.533,28.39033072]
[1772124974582,28.39971856,84.613,84.533,28.39033072]
[1772124974784,28.39971856,84.633,84.551,28.39033072]
[1772124974979,430.98962802,84.614,84.551,28.39033072]
[1772124975783,420.35342802,84.614,84.551,28.39033072]
[1772124976177,28.39971856,84.633,84.571,28.39033072]
[1772124976380,28.39971856,84.659,84.571,28.39033072]
[1772124976584,28.39971856,84.659,84.591,28.39033072]
[1772124976989,28.39971856,84.648,84.568,28.39033072]
[1772124977186,28.39971856,84.648,84.57,37.01778859]
[1772124977387,28.39971856,84.648,84.57,28.39033072]
[1772124977884,28.39971856,84.669,84.581,28.39033072]
[1772124978185,28.39971856,84.669,84.59,8.62745787]
[1772124978391,28.39971856,84.669,84.591,28.39033072]
[1772124978889,28.39971856,84.669,84.59,8.62745787]
[1772124978890,28.39971856,84.669,84.605,28.39033072]
[1772124979082,28.39971856,84.669,84.55,8.62745787]
[1772124979083,28.39971856,84.687,84.611,28.39033072]
[1772124979288,28.39971856,84.687,84.591,28.39033072]
[1772124979890,8.62745787,84.69,84.59,8.62745787]
[1772124979891,39.02851856,84.674,84.593,28.39033072]
[1772124980088,28.39971856,84.693,84.611,28.39033072]
[1772124980487,28.39971856,84.693,84.613,28.39033072]
[1772124980694,28.39971856,84.694,84.631,28.39033072]
[1772124981092,10.6274,84.684,84.631,28.39033072]
[1772124981695,10.6282,84.678,84.611,28.39033072]
[1772124981901,28.39971856,84.677,84.611,28.39033072]
[1772124982396,28.39971856,84.669,84.59,37.01778859]
[1772124983100,10.6315,84.651,84.59,37.01778859]
[1772124983301,10.6315,84.651,84.59,28.39033072]
[1772124983500,28.39971856,84.65,84.572,28.39033072]
[1772124983706,10.634,84.632,84.572,28.39033072]
[1772124984011,28.39971856,84.631,84.572,28.39033072]
[1772124984708,10.6344,84.629,84.572,28.39033072]
[1772124984898,165.3283,84.678,84.572,28.39033072]
[1772124984899,28.39971856,84.654,84.572,28.39033072]
[1772124985099,28.39971856,84.654,84.581,28.39033072]
[1772124985994,28.39971856,84.649,84.581,28.39033072]
[1772124986196,28.39971856,84.649,84.55,8.62745787]
[1772124986400,10.6354,84.62,84.562,28.39033072]
[1772124987802,28.39971856,84.629,84.562,28.39033072]
[1772124988403,28.39971856,84.651,84.571,28.39033072]
[1772124989003,28.39971856,84.679,84.581,28.39033072]
[1772124990305,28.39971856,84.679,84.592,28.39033072]
[1772124990504,28.39971856,84.659,84.592,28.39033072]
[1772124990907,10.6333,84.637,84.592,28.39033072]
[1772124991210,28.39971856,84.659,84.592,28.39033072]
[1772124992604,28.39971856,84.659,84.594,28.39033072]
[1772124992605,10.631,84.655,84.594,28.39033072]
[1772124993307,10.6322,84.646,84.594,28.39033072]
[1772124994112,10.6332,84.638,84.594,28.39033072]
[1772124994507,28.39971856,84.637,84.574,28.39033072]
[1772124994708,28.39971856,84.659,84.574,28.39033072]
[1772124994916,29.15677596,84.639,84.574,28.39033072]
[1772124995211,29.15677596,84.639,84.551,29.14833902]
[1772124995706,10.6365,84.612,84.554,29.14833902]
[1772124996214,29.15677596,84.619,84.554,29.14833902]
[1772124996611,10.6374,84.605,84.554,29.14833902]
[1772124996808,10.6374,84.605,84.554,28.89824449]
[1772124997515,29.15677596,84.627,84.54,70.62745787]
[1772124998207,10.636,84.616,84.553,10.6438]
[1772124998801,10.636,84.616,84.554,29.14833902]
[1772124999507,10.6373,84.606,84.556,28.90016648]
[1772124999712,29.15677596,84.627,84.556,28.90016648]
[1772125000118,28.55418764,84.649,84.556,28.90016648]
[1772125000415,28.55418764,84.649,84.573,28.90016648]
[1772125001812,10.6352,84.622,84.573,28.90016648]
[1772125002315,28.55418764,84.629,84.563,10.6425]
[1772125002517,10.6361,84.615,84.556,28.90016648]
[1772125003718,10.6351,84.623,84.56,28.90016648]
[1772125004113,28.55418764,84.649,84.575,28.90016648]
[1772125004616,10.634,84.631,84.575,28.90016648]
[1772125004814,28.55418764,84.649,84.575,28.90016648]
[1772125005418,10.636,84.616,84.575,28.90016648]
[1772125005619,10.636,84.616,84.562,10.6426]
[1772125005918,28.55418764,84.629,84.557,28.90016648]
[1772125006417,28.55418764,84.629,84.498,21.87641691]
[1772125006418,28.55418764,84.608,84.522,28.90016648]
[1772125007023,21.2696,84.625,84.522,28.90016648]
[1772125007024,28.55418764,84.588,84.522,28.90016648]
[1772125007720,10.641,84.576,84.525,10.6473]
[1772125008423,10.6401,84.583,84.525,10.6473]
[1772125008619,10.6401,84.583,84.531,28.90016648]
[1772125009223,10.639,84.592,84.533,28.90016648]
[1772125009417,28.55418764,84.589,84.533,28.90016648]
[1772125009618,28.55418764,84.589,84.511,28.90016648]
[1772125009823,10.6407,84.579,84.521,10.6478]
[1772125010019,10.6407,84.579,84.522,28.90016648]
[1772125010613,28.55418764,84.607,84.526,28.90016648]
[1772125011316,10.6377,84.602,84.539,28.90016648]
[1772125011515,28.55418764,84.607,84.539,28.90016648]
[1772125011920,28.55418764,84.607,84.543,28.90016648]
[1772125012623,10.6403,84.582,84.543,28.90016648]
[1772125012824,10.6403,84.582,84.526,10.6471]
[1772125013425,10.6413,84.574,84.525,28.90016648]
[1772125013624,28.55418764,84.659,84.561,28.90016648]
[1772125013923,28.55418764,84.62,84.561,28.90016648]
[1772125014319,8.62745787,84.61,84.54,28.90016648]
[1772125014523,28.55418764,84.609,84.54,28.90016648]
[1772125015630,28.55418764,84.627,84.551,28.90016648]
[1772125015827,28.55418764,84.627,84.555,28.90016648]
[1772125016331,28.55418764,84.627,84.559,28.90016648]
[1772125016828,28.55418764,84.627,84.564,28.90016648]
[1772125017328,28.55418764,84.627,84.552,28.90016648]
[1772125017725,28.55418764,84.608,84.552,28.90016648]
[1772125018629,28.55418764,84.608,84.533,14.56299873]
[1772125018821,28.55418764,84.608,84.531,28.90016648]
[1772125020430,28.55418764,84.608,84.531,39.54676648]
[1772125020633,28.55418764,84.608,84.531,28.90016648]
[1772125021133,28.55418764,84.591,84.508,28.90016648]
[1772125021322,23.22180751,84.499,84.4,21.95285973]
[1772125021525,10.662,84.41,84.35,8.62745787]
[1772125021725,28.55418764,84.439,84.33,8.62745787]
[1772125022235,28.55418764,84.439,84.35,8.62745787]
[1772125022627,28.55418764,84.436,84.36,9.34985352]
[1772125022828,28.55418764,84.436,84.35,8.62745787]
[1772125023029,28.55418764,84.436,84.33,8.62745787]
[1772125023329,10.6611,84.417,84.37,8.62745787]
[1772125023524,28.55418764,84.533,84.411,28.90016648]
[1772125023723,28.55418764,84.533,84.43,8.62745787]
[1772125023724,28.55418764,84.512,84.43,8.62745787]
[1772125024534,28.55418764,84.492,84.411,28.90016648]
[1772125024934,10.6552,84.463,84.411,28.90016648]
[1772125025734,10.6552,84.463,84.424,9.34985352]
[1772125026234,10.6552,84.463,84.43,9.34985352]
[1772125026430,10.6552,84.463,84.411,28.90016648]
[1772125026831,10.6552,84.463,84.423,9.34985352]
[1772125027233,10.6537,84.475,84.411,28.90016648]
[1772125027546,28.55418764,84.492,84.411,28.90016648]
[1772125029239,28.55418764,84.471,84.391,28.90016648]
[1772125029541,28.55418764,84.471,84.4,62.0]
[1772125030047,10.6567,84.452,84.4,62.0]
[1772125030434,28.55418764,84.471,84.409,9.34985352]
[1772125030640,28.55418764,84.471,84.401,30.40972168]
[1772125030840,28.55418764,84.471,84.404,9.34985352]
[1772125031031,28.55418764,84.471,84.4,62.0]
[1772125031238,30.42073174,84.437,84.361,30.40972168]
[1772125031641,30.42073174,84.437,84.373,9.34985352]
[1772125031944,30.42073174,84.437,84.361,30.40972168]
[1772125032739,30.42073174,84.479,84.381,30.40972168]
[1772125032943,30.42073174,84.458,84.381,30.40972168]
[1772125033339,30.42073174,84.458,84.382,9.34985352]
[1772125033539,30.42073174,84.458,84.381,30.40972168]
[1772125033740,10.6566,84.452,84.382,9.34985352]
[1772125034042,10.6566,84.452,84.381,30.40972168]
[1772125034247,10.6566,84.452,84.391,30.40972168]
[1772125034541,30.42073174,84.475,84.4,8.62745787]
[1772125034742,30.42073174,84.475,84.401,30.40972168]
[1772125034938,30.42073174,84.499,84.409,30.40972168]
[1772125035247,30.42073174,84.449,84.38,30.40972168]
[1772125035541,10.6589,84.434,84.38,30.40972168]
[1772125036136,10.6589,84.434,84.396,9.34985352]
[1772125036348,10.6589,84.434,84.38,30.40972168]
[1772125036736,10.6589,84.434,84.395,9.34985352]
[1772125037235,10.6575,84.445,84.402,9.34985352]
[1772125037442,10.6575,84.445,84.39,8.65772076]
[1772125037637,30.42073174,84.511,84.41,8.65772076]
[1772125037837,30.42073174,84.511,84.37,8.65772076]
[1772125037838,30.42073174,84.486,84.43,8.65772076]
[1772125038036,30.42073174,84.506,84.431,30.40972168]
[1772125038434,30.42073174,84.506,84.435,30.40972168]
[1772125038841,30.42073174,84.506,84.436,9.34985352]
[1772125039240,8.65772076,84.53,84.43,62.0]
[1772125039241,30.42073174,84.493,84.43,62.0]
[1772125039441,30.42073174,84.493,84.411,30.40972168]
[1772125039640,30.42073174,84.489,84.412,9.34985352]
[1772125039839,30.42073174,84.489,84.411,30.40972168]
[1772125040146,30.42073174,84.467,84.4,8.65772076]
[1772125040642,30.42073174,84.429,84.368,30.40972168]
[1772125041243,41.08023174,84.429,84.374,9.34985352]
[1772125041442,30.42073174,84.429,84.374,9.34985352]
[1772125041744,30.42073174,84.429,84.377,9.34985352]
[1772125041945,30.42073174,84.429,84.368,30.40972168]
[1772125042239,30.42073174,84.429,84.374,9.34985352]
[1772125042444,30.42073174,84.429,84.369,30.40972168]
[1772125042841,10.6596,84.428,84.369,30.40972168]
[1772125043239,30.42073174,84.429,84.36,72.6681]
[1772125043240,30.42073174,84.449,84.386,30.40972168]
[1772125043644,41.07783174,84.449,84.386,30.40972168]
[1772125043841,41.07783174,84.449,84.394,9.34985352]
[1772125044035,41.07783174,84.449,84.386,30.40972168]
[1772125044238,41.07783174,84.449,84.394,9.34985352]
[1772125044534,30.42073174,84.449,84.386,30.40972168]
[1772125044736,30.42073174,84.449,84.399,9.34985352]
[1772125044939,30.42073174,84.449,84.386,30.40972168]
[1772125045349,30.42073174,84.449,84.396,10.6636]
[1772125045540,10.6557,84.459,84.396,10.6636]
[1772125045739,41.07523174,84.469,84.404,9.34985352]
[1772125046049,30.42073174,84.489,84.411,30.40972168]
[1772125046844,30.42073174,84.489,84.416,9.34985352]
[1772125047046,10.653,84.48,84.422,10.6602]
[1772125047243,30.42073174,84.489,84.418,30.40972168]
[1772125047542,30.42073174,84.508,84.432,30.40972168]
[1772125047743,30.42073174,84.529,84.432,30.40972168]
[1772125048442,30.42073174,84.529,84.451,30.40972168]
[1772125048636,30.42073174,84.529,84.457,30.40972168]
[1772125048838,30.42073174,84.529,84.47,39.06744244]
[1772125049035,30.42073174,84.529,84.47,8.65772076]
[1772125049235,8.65772076,84.52,84.44,8.65772076]
[1772125049438,30.42073174,84.519,84.44,8.65772076]
[1772125049845,30.42073174,84.519,84.446,9.34985352]
[1772125050243,30.42073174,84.519,84.44,8.65772076]
[1772125050541,10.6501,84.504,84.442,10.6578]
[1772125050742,30.42073174,84.503,84.431,30.40972168]
[1772125051139,8.65772076,84.52,84.431,30.40972168]
[1772125051140,30.42073174,84.497,84.434,10.6587]
[1772125051341,30.42073174,84.497,84.411,30.40972168]
[1772125051942,30.42073174,84.497,84.424,9.34985352]
[1772125052344,30.42073174,84.497,84.411,30.40972168]
[1772125052546,30.42073174,84.497,84.424,9.34985352]
[1772125052744,30.42073174,84.476,84.416,10.6611]
[1772125053348,41.07453174,84.475,84.411,30.40972168]
[1772125053546,41.07453174,84.475,84.414,9.34985352]
[1772125053747,41.07453174,84.475,84.411,30.40972168]
[1772125054053,30.42073174,84.472,84.403,10.6628]
[1772125054445,30.42073174,84.472,84.404,30.40972168]
[1772125054646,30.42073174,84.472,84.409,10.662]
[1772125054844,30.42073174,84.472,84.409,32.10484373]
[1772125055044,30.42073174,84.472,84.418,9.34985352]
[1772125055348,30.42073174,84.472,84.42,10.6606]
[1772125055954,30.42073174,84.472,84.434,9.34985352]
[1772125056343,30.42073174,84.472,84.42,10.6606]
[1772125056650,30.42073174,84.472,84.435,9.34985352]
[1772125056850,8.65772076,84.5,84.435,9.34985352]
[1772125056851,30.00353301,84.499,84.435,9.34985352]
[1772125057155,10.6525,84.485,84.428,10.6596]
[1772125057753,10.6525,84.485,84.439,9.34985352]
[1772125057961,10.6525,84.485,84.428,10.6596]
[1772125058648,30.00353301,84.479,84.384,32.10484373]
[1772125058853,30.00353301,84.469,84.384,32.10484373]
[1772125059354,30.00353301,84.469,84.404,32.10484373]
[1772125059951,30.00353301,84.469,84.417,9.34985352]
[1772125060153,30.00353301,84.469,84.41,31.46015976]
[1772125060356,30.00353301,84.469,84.411,31.46015976]
[1772125060752,31.0551849,84.449,84.38,62.0]
[1772125060956,31.0551849,84.449,84.358,31.46015976]
[1772125061463,31.0551849,84.449,84.38,9.34985352]
[1772125061966,10.6591,84.433,84.391,9.34985352]
[1772125062168,31.0551849,84.449,84.376,10.6662]
[1772125062455,31.0551849,84.449,84.394,9.34985352]
[1772125062860,10.658,84.441,84.403,9.34985352]
[1772125063060,10.658,84.441,84.378,42.12595976]
[1772125063254,31.0551849,84.449,84.378,31.46015976]
[1772125063454,31.0551849,84.449,84.395,9.34985352]
[1772125063658,31.0551849,84.449,84.378,31.46015976]
[1772125063852,31.0551849,84.449,84.39,9.34985352]
[1772125064252,31.0551849,84.449,84.378,31.46015976]
[1772125064463,31.0551849,84.449,84.391,9.34985352]
[1772125064664,31.0551849,84.447,84.356,31.46015976]
[1772125065163,10.6615,84.414,84.357,10.6685]
[1772125065363,31.0551849,84.424,84.358,31.46015976]
[1772125066468,31.0551849,84.443,84.362,31.46015976]
[1772125067252,31.0551849,84.443,84.381,31.46015976]
[1772125067864,10.6579,84.442,84.382,31.46015976]
[1772125068460,10.6579,84.442,84.383,10.6653]
[1772125068662,10.6579,84.442,84.383,42.12545976]
[1772125069056,31.0551849,84.441,84.37,62.0]
[1772125069260,31.0551849,84.442,84.351,31.46015976]
[1772125070866,10.6596,84.429,84.359,10.6682]
[1772125071066,10.6596,84.429,84.36,31.46015976]
[1772125071664,31.0551849,84.442,84.372,31.46015976]
[1772125072270,10.658,84.441,84.379,10.6657]
[1772125072568,31.0551849,84.441,84.372,31.46015976]
[1772125072766,10.6591,84.433,84.372,31.46015976]
[1772125073273,31.0551849,84.441,84.372,31.46015976]
[1772125073971,31.0551849,84.441,84.382,10.6654]
[1772125074863,10.6581,84.44,84.382,10.6654]
[1772125075065,41.7132849,84.44,84.382,10.6654]
[1772125075268,31.0551849,84.44,84.382,10.6654]
[1772125076069,31.0551849,84.44,84.389,10.6644]
[1772125076270,31.0551849,84.44,84.372,31.46015976]
[1772125077771,31.0551849,84.438,84.372,31.46015976]
[1772125078568,31.0551849,84.438,84.373,31.46015976]
[1772125079874,31.0551849,84.438,84.378,10.6658]
[1772125080375,31.0551849,84.438,84.35,10.6693]
[1772125080571,31.0551849,84.438,84.351,31.46015976]
[1772125081272,10.6611,84.416,84.353,31.46015976]
[1772125081473,31.0551849,84.421,84.353,31.46015976]
[1772125082276,31.0551849,84.418,84.353,31.46015976]
[1772125083077,31.0551849,84.435,84.361,31.46015976]
[1772125083476,41.7139849,84.435,84.372,31.46015976]
[1772125083683,31.0551849,84.434,84.372,31.46015976]
[1772125084178,31.0551849,84.434,84.376,31.46015976]
[1772125084573,31.0551849,84.452,84.391,31.46015976]
[1772125085080,31.0551849,84.452,84.38,40.11788052]
[1772125085676,31.0551849,84.452,84.381,31.46015976]
[1772125085876,31.0551849,84.448,84.387,10.6648]
[1772125086078,31.0551849,84.448,84.387,31.46015976]
[1772125086273,31.0551849,84.465,84.4,40.11788052]
[1772125086476,31.0551849,84.465,84.403,10.6627]
[1772125087071,31.0551849,84.465,84.403,42.12285976]
[1772125087670,41.7103849,84.463,84.403,42.12285976]
[1772125087876,31.0551849,84.462,84.4,8.65772076]
[1772125088073,31.0551849,84.46,84.36,31.46015976]
[1772125088276,21.3093,84.468,84.36,31.46015976]
[1772125088277,31.0551849,84.458,84.36,31.46015976]
[1772125088472,31.0551849,84.456,84.36,31.46015976]
[1772125088672,10.6613,84.415,84.36,31.46015976]
[1772125088977,41.7164849,84.415,84.36,31.46015976]
[1772125089186,31.0551849,84.415,84.36,31.46015976]
[1772125089680,31.86743052,84.468,84.371,29.70629388]
[1772125089883,30.72824354,84.466,84.371,29.70629388]
[1772125090078,30.72824354,84.464,84.371,29.70629388]
[1772125090284,30.72824354,84.462,84.371,29.70629388]
[1772125090480,30.72824354,84.432,84.351,29.70629388]
[1772125091185,30.72824354,84.468,84.371,29.70629388]
[1772125091485,30.72824354,84.429,84.38,10.6656]
[1772125092083,30.72824354,84.426,84.352,29.70629388]
[1772125092289,30.72824354,84.426,84.35,8.65772076]
[1772125092585,30.72824354,84.426,84.35,38.36401464]
[1772125092987,30.72824354,84.417,84.35,38.36401464]
[1772125093785,41.38984354,84.413,84.359,10.6683]
[1772125095290,41.38984354,84.413,84.36,8.66004509]
[1772125095993,41.38984354,84.413,84.352,29.70629388]
[1772125097685,10.6633,84.399,84.352,29.70629388]
[1772125097884,30.72824354,84.398,84.321,29.70629388]
[1772125098189,10.67,84.346,84.27,8.66004509]
[1772125098380,10.67,84.346,84.211,166.2437]
[1772125098381,30.72824354,84.357,84.26,8.66004509]
[1772125098580,30.72824354,84.357,84.271,29.70629388]
[1772125098782,30.72824354,84.356,84.29,8.66004509]
[1772125098985,30.72824354,84.356,84.29,38.36633897]
[1772125099282,30.72824354,84.356,84.291,29.70629388]
[1772125099678,30.72824354,84.356,84.29,8.66004509]
[1772125100087,30.72824354,84.356,84.285,10.6777]
[1772125100388,30.72824354,84.356,84.29,8.66004509]
[1772125100690,30.72824354,84.385,84.31,8.66004509]
[1772125101090,30.72824354,84.385,84.311,29.70629388]
[1772125101292,30.72824354,84.385,84.33,8.66004509]
[1772125101486,8.66004509,84.43,84.331,29.70629388]
[1772125101487,30.72824354,84.429,84.331,29.70629388]
[1772125101791,30.72824354,84.408,84.332,10.6717]
[1772125101988,30.72824354,84.408,84.333,29.70629388]
[1772125102183,10.6592,84.431,84.351,40.37559388]
[1772125102384,30.72824354,84.43,84.352,29.70629388]
[1772125102691,30.72824354,84.43,84.37,8.66004509]
[1772125102889,30.72824354,84.43,84.375,10.6662]
[1772125103095,30.72824354,84.43,84.37,8.66004509]
[1772125103788,30.72824354,84.469,84.372,29.70629388]
[1772125103989,30.72824354,84.467,84.391,29.70629388]
[1772125104596,30.72824354,84.467,84.4,8.66004509]
[1772125104997,30.72824354,84.467,84.38,8.66004509]
[1772125105494,8.66004509,84.48,84.38,8.66004509]
[1772125105495,30.72824354,84.465,84.38,38.36633897]
[1772125105696,30.72824354,84.454,84.384,10.6651]
[1772125106094,30.72824354,84.454,84.381,29.70629388]
[1772125106498,30.72824354,84.451,84.36,29.70629388]
[1772125106791,30.72824354,84.451,84.36,38.36633897]
[1772125107186,30.72824354,84.433,84.36,49.03443897]
[1772125107800,30.72824354,84.431,84.36,38.36633897]
[1772125108097,30.72824354,84.431,84.36,8.66004509]
[1772125108593,30.72824354,84.428,84.34,8.66004509]
[1772125108897,30.72824354,84.419,84.322,29.70629388]
[1772125109095,30.72824354,84.406,84.325,10.6726]
[1772125109296,30.72824354,84.399,84.303,29.70629388]
[1772125109494,30.72824354,84.377,84.304,10.6753]
[1772125109792,30.72824354,84.375,84.282,29.70629388]
[1772125109991,30.72824354,84.373,84.282,29.70629388]
[1772125110192,165.8471,84.413,84.282,29.70629388]
[1772125110193,30.72824354,84.396,84.321,29.70629388]
[1772125110693,30.72824354,84.384,84.3,8.66004509]
[1772125111292,30.72824354,84.384,84.313,10.674]
[1772125111493,30.72824354,84.384,84.264,166.1387]
[1772125111494,30.72824354,84.384,84.321,29.70629388]
[1772125112394,30.72824354,84.384,84.243,29.70629388]
[1772125112600,30.72824354,84.369,84.27,8.66004509]
[1772125112792,30.72824354,84.367,84.27,8.66004509]
[1772125113099,30.72824354,84.345,84.278,10.6786]
[1772125113691,30.72824354,84.345,84.279,29.70629388]
[1772125113997,10.6679,84.363,84.279,29.70629388]
[1772125114295,286.14091605,84.393,84.24,8.66004509]
[1772125114296,30.72824354,84.368,84.292,29.70629388]
[1772125115698,30.72824354,84.368,84.283,10.6779]
[1772125115699,30.72824354,84.368,84.3,8.66004509]
[1772125116106,30.72824354,84.368,84.301,31.95274404]
[1772125116290,10.665,84.386,84.317,31.95274404]
[1772125116495,286.14091605,84.393,84.317,31.95274404]
[1772125116688,286.14091605,84.393,84.34,8.66004509]
[1772125117001,286.14091605,84.393,84.3,8.66004509]
[1772125117002,271.50776205,84.393,84.36,8.66004509]
[1772125117500,271.50776205,84.393,84.341,31.95274404]
[1772125117699,253.51006205,84.393,84.36,8.66004509]
[1772125118008,30.9606722,84.425,84.381,10.6655]
[1772125118298,78.88804871,84.455,84.38,8.66004509]
[1772125118791,78.88804871,84.455,84.315,166.037]
[1772125118792,78.87936106,84.439,84.303,166.0618]
[1772125118992,78.87936106,84.439,84.34,8.66004509]
[1772125119505,78.63245058,84.415,84.34,8.66004509]
[1772125120699,78.61761488,84.438,84.38,8.66004509]
[1772125121002,78.61761488,84.462,84.38,8.66004509]
[1772125121202,78.61761488,84.462,84.36,8.66004509]
[1772125121401,78.85016535,84.46,84.36,8.66004509]
[1772125121596,78.85016535,84.436,84.35,8.66004509]
[1772125122195,78.85016535,84.436,84.281,166.1055]
[1772125122196,78.85016535,84.42,84.285,21.3552]
[1772125122500,78.85016535,84.42,84.33,8.66004509]
[1772125122694,78.85016535,84.407,84.341,10.6706]
[1772125122894,78.85016535,84.407,84.33,8.66004509]
[1772125123593,78.85016535,84.407,84.339,10.6708]
[1772125124103,78.85016535,84.407,84.33,8.66004509]
[1772125124805,78.85016535,84.407,84.35,8.66004509]
[1772125125206,78.85016535,84.407,84.355,10.6688]
[1772125125599,78.85016535,84.407,84.33,8.66004509]
[1772125125798,78.85016535,84.407,84.345,10.67]
[1772125127203,78.85016535,84.407,84.352,10.6691]
[1772125127602,78.85016535,84.407,84.35,8.66004509]
[1772125128307,78.85016535,84.426,84.35,8.66004509]
[1772125128809,78.85016535,84.445,84.37,8.66004509]
[1772125130001,78.85016535,84.464,84.39,8.66004509]
[1772125130203,78.85016535,84.499,84.41,8.66004509]
[1772125130605,10.6509,84.497,84.427,10.6596]
[1772125130806,78.85016535,84.496,84.427,10.6596]
[1772125131108,78.85016535,84.496,84.41,8.66004509]
[1772125131300,78.85016535,84.483,84.41,8.66004509]
[1772125132310,78.85016535,84.483,84.427,10.6596]
[1772125134007,78.85016535,84.506,84.43,8.66004509]
[1772125134406,89.50106535,84.497,84.434,10.6588]
[1772125135005,89.50106535,84.497,84.43,8.66004509]
[1772125135006,78.85016535,84.488,84.4,8.66004509]
[1772125135508,78.85016535,84.466,84.402,10.6628]
[1772125135708,78.85016535,84.466,84.4,8.66004509]
[1772125137002,78.85016535,84.462,84.401,10.663]
[1772125138013,78.85016535,84.462,84.392,10.664]
[1772125138803,78.85016535,84.449,84.384,10.6652]
[1772125139210,78.85016535,84.446,84.375,10.6663]
[1772125139510,78.85016535,84.446,84.35,68.66004509]
[1772125140410,165.7092,84.483,84.35,68.66004509]
[1772125140411,78.85016535,84.459,84.39,8.66004509]
[1772125141110,78.85016535,84.459,84.405,10.6624]
[1772125141309,78.85016535,84.459,84.39,8.66004509]
[1772125141708,78.85016535,84.458,84.37,8.66004509]
[1772125141904,78.85016535,84.458,84.38,8.66004509]
[1772125142306,89.50606535,84.458,84.38,8.66004509]
[1772125142513,78.85016535,84.458,84.38,8.66004509]
[1772125143716,78.85016535,84.449,84.386,10.6649]
[1772125144318,78.85016535,84.449,84.394,10.6639]
[1772125144812,78.85016535,84.469,84.4,8.66004509]
[1772125145116,78.85016535,84.488,84.42,8.66004509]
[1772125146718,10.6522,84.487,84.431,10.6592]
[1772125147019,78.85016535,84.488,84.42,8.66004509]
[1772125147517,78.85016535,84.488,84.439,10.6582]
[1772125147918,78.85016535,84.518,84.44,8.66004509]
[1772125148921,10.6495,84.508,84.447,10.6572]
[1772125149319,78.85016535,84.518,84.44,8.66004509]
[1772125149523,78.85016535,84.518,84.471,10.6541]
[1772125149719,78.85016535,84.518,84.46,8.66004509]
[1772125150425,78.90591976,84.541,84.47,10.6542]
[1772125150932,78.90591976,84.531,84.47,10.6542]
[1772125151222,78.90591976,84.531,84.48,10.653]
[1772125151624,78.90591976,84.553,84.48,8.66004509]
[1772125151924,78.90591976,84.553,84.487,10.6521]
[1772125153117,89.55011976,84.551,84.487,10.6521]
[1772125154319,8.66004509,84.58,84.401,165.8697]
[1772125154320,78.90591976,84.541,84.474,10.6537]
[1772125154518,78.90591976,84.541,84.46,8.66004509]
[1772125155424,78.90591976,84.539,84.44,8.66004509]
[1772125156020,78.90591976,84.521,84.44,8.66004509]
[1772125156224,8.66004509,84.52,84.44,8.66004509]
[1772125156420,78.90591976,84.519,84.44,8.66004509]
[1772125156625,78.90591976,84.498,84.432,10.659]
[1772125157222,78.90591976,84.498,84.44,8.64224963]
[1772125157724,78.90591976,84.498,84.44,19.30024963]
[1772125158223,78.90591976,84.498,84.44,8.64224963]
[1772125159428,78.90591976,84.523,84.44,8.64224963]
[1772125159626,78.90591976,84.523,84.44,70.64224963]
[1772125159828,78.90591976,84.523,84.46,8.64224963]
[1772125160219,78.90591976,84.523,84.472,10.6539]
[1772125160620,89.55351976,84.523,84.463,10.6551]
[1772125161123,78.90591976,84.498,84.44,70.64224963]
[1772125161329,78.90591976,84.498,84.44,8.64224963]
[1772125161925,78.90591976,84.498,84.448,10.657]